bitfinex-derivatives/quotes_SOLF0:USTF0_20241222
["timestamp","ask_amount","ask_price","bid_price","bid_amount"]
[1734862682374,22.58812243,186.69,186.56,2.76]
[1734862682673,2.76,186.68,186.56,2.76]
[1734862682867,2.76,186.68,186.58,2.6817]
[1734862683068,2.76,186.68,186.56,2.76]
[1734862683577,2.6814,186.61,186.57,2.6818]
[1734862684077,2.6812,186.62,186.58,2.6817]
[1734862684477,2.76,186.68,186.56,2.76]
[1734862684674,2.6812,186.63,186.59,2.6816]
[1734862684874,2.76,186.68,186.56,2.76]
[1734862685573,2.6812,186.63,186.58,2.6817]
[1734862685777,2.6812,186.63,186.56,2.76]
[1734862685973,2.76,186.68,186.56,2.76]
[1734862686171,2.6808,186.65,186.56,25.34812243]
[1734862686378,2.76,186.68,186.56,25.34812243]
[1734862686676,2.6807,186.66,186.62,2.6811]
[1734862686875,2.6807,186.66,186.56,25.34812243]
[1734862687278,2.6807,186.66,186.62,2.6811]
[1734862688375,2.76,186.68,186.56,25.34812243]
[1734862688576,2.6804,186.68,186.64,2.6809]
[1734862689177,25.34812243,186.72,186.64,2.6809]
[1734862689376,25.34812243,186.72,186.61,2.76]
[1734862690279,2.76,186.72,186.61,2.76]
[1734862690465,2.6807,186.66,186.61,5.4412]
[1734862691278,2.76,186.72,186.61,2.76]
[1734862691475,2.76,186.72,186.63,2.6809]
[1734862692174,2.6805,186.68,186.61,2.76]
[1734862692379,2.76,186.72,186.61,2.76]
[1734862692775,2.6805,186.68,186.61,2.76]
[1734862693378,2.6805,186.68,186.65,2.6807]
[1734862693680,2.6805,186.68,186.61,2.76]
[1734862694283,16.66103363,186.73,186.61,2.76]
[1734862694680,2.6811,186.63,186.61,2.76]
[1734862694880,16.66103363,186.73,186.61,2.76]
[1734862695279,2.76,186.73,186.61,2.76]
[1734862695582,16.66103363,186.73,186.61,2.76]
[1734862695875,2.6802,186.69,186.66,2.6806]
[1734862696578,2.6804,186.68,186.64,2.6808]
[1734862697984,2.6805,186.67,186.63,2.6811]
[1734862698183,2.6805,186.67,186.61,2.76]
[1734862698383,16.66103363,186.73,186.61,2.76]
[1734862698685,2.6804,186.68,186.65,2.6807]
[1734862698883,2.6804,186.68,186.61,2.76]
[1734862699085,13.90103363,186.73,186.61,2.76]
[1734862699283,13.90103363,186.73,186.67,2.6804]
[1734862699284,2.6799,186.71,186.67,2.6804]
[1734862699487,2.76,186.73,186.62,3.2102]
[1734862699790,2.6802,186.69,186.65,2.6807]
[1734862700289,2.76,186.73,186.65,2.6807]
[1734862700985,2.76,186.73,186.63,2.76]
[1734862701183,2.76,186.73,186.62,2.6812]
[1734862701184,16.66103363,186.73,186.62,2.6812]
[1734862701585,2.6807,186.66,186.62,2.6812]
[1734862702997,16.66103363,186.73,186.62,2.6812]
[1734862703292,2.6808,186.65,186.62,2.6812]
[1734862703490,16.66103363,186.73,186.61,2.76]
[1734862703692,2.76,186.73,186.61,2.76]
[1734862703992,2.76,186.73,186.62,1.5978]
[1734862704185,2.6802,186.69,186.62,1.5978]
[1734862704580,2.6802,186.69,186.65,2.6807]
[1734862705384,2.6802,186.69,186.62,1.5978]
[1734862705587,2.68,186.71,186.62,1.5978]
[1734862705993,2.68,186.71,186.62,15.49883363]
[1734862706188,2.6798,186.72,186.62,15.49883363]
[1734862706384,13.90103363,186.79,186.62,15.49883363]
[1734862706591,2.76,186.81,186.65,13.90103363]
[1734862706792,2.6795,186.75,186.66,5.9985]
[1734862707490,2.6795,186.75,186.7,2.6799]
[1734862708096,2.6795,186.75,186.71,2.6799]
[1734862708294,17.23553363,186.82,186.71,2.76]
[1734862708498,2.76,186.81,186.72,2.6797]
[1734862708797,19.99553363,186.82,186.71,2.76]
[1734862709490,17.23553363,186.82,186.71,2.76]
[1734862711198,2.6793,186.76,186.71,5.4399]
[1734862711498,17.23553363,186.82,186.71,5.4399]
[1734862711698,2.6795,186.74,186.71,5.4399]
[1734862711902,17.23553363,186.82,186.71,5.4399]
[1734862712204,2.6791,186.77,186.73,2.6796]
[1734862712403,3.3345,186.82,186.71,2.76]
[1734862712802,3.3345,186.82,186.72,1.6476]
[1734862713102,17.23553363,186.82,186.71,2.76]
[1734862713303,2.6795,186.75,186.71,2.76]
[1734862713999,17.23553363,186.82,186.72,2.6798]
[1734862714301,2.6792,186.77,186.71,2.76]
[1734862715098,17.23553363,186.82,186.75,2.6793]
[1734862715402,3.3345,186.82,186.71,2.76]
[1734862715602,2.6787,186.8,186.76,2.6791]
[1734862715801,3.3345,186.82,186.72,1.7301]
[1734862717605,2.6786,186.81,186.76,2.6791]
[1734862717797,13.90103363,186.85,186.72,1.7301]
[1734862718003,2.76,186.86,186.72,1.7301]
[1734862718604,2.6784,186.82,186.72,1.7301]
[1734862718908,10.17500492,186.87,186.72,1.7301]
[1734862719102,2.6783,186.83,186.76,2.6792]
[1734862719299,13.90103363,186.85,186.76,2.76]
[1734862721306,2.6787,186.8,186.76,2.76]
[1734862721807,13.90103363,186.85,186.76,2.76]
[1734862722005,2.6789,186.79,186.76,2.76]
[1734862722203,13.90103363,186.85,186.72,2.76]
[1734862722810,2.6792,186.77,186.73,2.6796]
[1734862723310,2.76,186.82,186.69,13.90103363]
[1734862723311,16.66103363,186.82,186.69,2.76]
[1734862723506,16.66103363,186.82,186.68,2.76]
[1734862724210,2.6796,186.73,186.67,1.7024]
[1734862724405,13.90103363,186.79,186.67,4.4624]
[1734862724602,3.2859,186.78,186.67,2.76]
[1734862724904,2.76,186.77,186.67,2.76]
[1734862725111,2.6795,186.74,186.68,2.6803]
[1734862725306,2.76,186.77,186.67,2.76]
[1734862725700,13.90103363,186.76,186.58,58.48352792]
[1734862725907,13.90103363,186.73,186.59,2.76]
[1734862726109,2.76,186.72,186.59,2.76]
[1734862726508,2.76,186.72,186.58,58.48352792]
[1734862726509,13.90103363,186.7,186.58,58.48352792]
[1734862726710,1.6861,186.69,186.57,1.7086]
[1734862726910,4.8847,186.69,186.57,1.7086]
[1734862727112,2.6811,186.64,186.58,2.6817]
[1734862727312,2.76,186.68,186.58,2.6817]
[1734862727910,2.681,186.64,186.58,2.6817]
[1734862728113,2.76,186.68,186.57,5.4418]
[1734862728509,2.6812,186.62,186.57,5.4418]
[1734862728814,2.76,186.68,186.56,2.76]
[1734862729209,2.6814,186.61,186.56,2.76]
[1734862729415,13.90103363,186.67,186.55,5.4422]
[1734862729814,2.681,186.64,186.55,2.76]
[1734862730011,13.90103363,186.67,186.55,2.76]
[1734862730408,2.6819,186.58,186.55,2.76]
[1734862730911,2.6819,186.58,186.52,2.76]
[1734862731108,2.6819,186.58,186.54,2.6823]
[1734862733415,2.6819,186.58,186.52,2.76]
[1734862733615,2.6819,186.57,186.52,5.4425]
[1734862733917,2.76,186.63,186.5,2.76]
[1734862734116,2.6816,186.6,186.5,5.4429]
[1734862734313,2.76,186.63,186.5,5.4429]
[1734862734710,13.90103363,186.61,186.49,2.683]
[1734862734914,13.90103363,186.58,186.46,2.76]
[1734862735221,2.76,186.57,186.46,2.76]
[1734862735517,2.6825,186.53,186.48,2.6831]
[1734862736020,4.9153,186.6,186.46,2.76]
[1734862736416,4.9153,186.6,186.48,13.90103363]
[1734862736615,2.6817,186.59,186.53,2.6824]
[1734862737419,4.9153,186.6,186.52,2.6826]
[1734862737721,4.9153,186.6,186.51,2.76]
[1734862739518,3.3294,186.6,186.51,2.76]
[1734862740023,2.6818,186.58,186.53,2.6825]
[1734862740218,3.3294,186.6,186.51,2.76]
[1734862740417,2.76,186.64,186.51,16.66103363]
[1734862740722,2.6812,186.62,186.58,2.6818]
[1734862740919,1.7326,186.65,186.52,4.8932]
[1734862741318,2.6815,186.61,186.56,2.682]
[1734862741519,2.6815,186.61,186.52,4.8932]
[1734862741917,2.6811,186.63,186.52,4.8932]
[1734862742121,2.76,186.68,186.54,13.90103363]
[1734862742322,3.3082,186.7,186.54,13.90103363]
[1734862742518,2.6804,186.68,186.64,2.6809]
[1734862742723,2.6804,186.68,186.6,2.76]
[1734862743016,3.3082,186.7,186.6,2.76]
[1734862743521,1.6997,186.7,186.6,2.76]
[1734862743720,2.6805,186.67,186.62,2.6812]
[1734862743915,1.6997,186.7,186.6,2.76]
[1734862744324,2.6808,186.66,186.61,2.6813]
[1734862744514,1.6997,186.7,186.61,2.6813]
[1734862744721,1.6997,186.7,186.6,2.76]
[1734862745123,13.90103363,186.66,186.55,2.76]
[1734862745424,16.66103363,186.66,186.55,2.76]
[1734862745725,2.6811,186.63,186.55,2.76]
[1734862746021,5.4407,186.66,186.61,2.6813]
[1734862746621,2.76,186.66,186.63,2.681]
[1734862746815,4.4597,186.7,186.63,2.681]
[1734862747722,4.4597,186.7,186.6,2.76]
[1734862748121,2.6805,186.67,186.61,2.6813]
[1734862748316,4.4597,186.7,186.6,2.76]
[1734862748726,2.6806,186.67,186.62,2.6812]
[1734862748926,4.4597,186.7,186.62,2.6812]
[1734862749322,4.4597,186.7,186.6,2.76]
[1734862750427,2.6806,186.67,186.63,2.681]
[1734862750623,2.6806,186.67,186.6,2.76]
[1734862751119,1.6085,186.75,186.6,2.76]
[1734862751317,1.6085,186.75,186.61,3.3546]
[1734862751522,1.6085,186.75,186.61,5.0576]
[1734862751727,2.6796,186.73,186.61,5.0576]
[1734862752328,2.6796,186.73,186.68,2.6802]
[1734862752526,2.6795,186.75,186.66,2.76]
[1734862753226,2.6795,186.75,186.71,2.6799]
[1734862754325,1.6595,186.78,186.71,2.76]
[1734862754527,3.2422,186.83,186.71,2.76]
[1734862754730,1.5802,186.83,186.71,2.76]
[1734862754933,1.5802,186.83,186.79,2.6788]
[1734862755131,1.5802,186.83,186.76,2.76]
[1734862756628,1.5802,186.83,186.72,4.9121]
[1734862756825,13.90103363,186.81,186.71,2.76]
[1734862757021,13.90103363,186.81,186.69,2.76]
[1734862757022,2.76,186.8,186.69,2.76]
[1734862757232,13.90103363,186.78,186.69,2.76]
[1734862757430,2.6798,186.72,186.67,2.6805]
[1734862757622,2.76,186.75,186.66,1.6329]
[1734862758031,5.4394,186.75,186.66,1.6329]
[1734862758226,2.76,186.75,186.66,1.6329]
[1734862759033,2.76,186.75,186.66,4.3929]
[1734862759435,2.6795,186.74,186.7,2.6801]
[1734862759636,2.76,186.75,186.66,4.3929]
[1734862760430,2.6798,186.72,186.67,2.6805]
[1734862761332,2.68,186.71,186.66,2.6806]
[1734862761538,13.90103363,186.72,186.61,7.8514]
[1734862762633,13.90103363,186.72,186.63,2.6809]
[1734862762634,2.6805,186.68,186.63,2.6809]
[1734862762935,5.0808,186.74,186.61,7.8514]
[1734862763129,7.8408,186.74,186.61,7.8514]
[1734862763330,2.6801,186.7,186.65,2.6807]
[1734862763531,7.8408,186.74,186.61,7.8514]
[1734862763836,7.8408,186.74,186.61,4.4641]
[1734862764037,3.4146,186.74,186.61,4.4641]
[1734862764931,2.68,186.71,186.64,2.6808]
[1734862765127,17.31563363,186.74,186.61,4.4641]
[1734862765533,2.6804,186.68,186.63,2.681]
[1734862765728,2.76,186.71,186.61,4.4641]
[1734862766331,2.6803,186.68,186.62,2.6812]
[1734862766638,2.76,186.71,186.62,2.6812]
[1734862767441,3.4146,186.74,186.61,18.36513363]
[1734862767640,3.4146,186.74,186.62,3.272]
[1734862768629,2.6796,186.73,186.69,2.6802]
[1734862770940,2.6799,186.72,186.66,2.76]
[1734862772540,2.6799,186.72,186.68,2.6803]
[1734862772837,3.4146,186.74,186.66,2.76]
[1734862773235,22.57574442,186.78,186.66,2.76]
[1734862773737,25.33574442,186.78,186.66,2.76]
[1734862773936,2.6793,186.75,186.7,2.6799]
[1734862774137,2.6793,186.75,186.66,2.76]
[1734862774737,2.6792,186.76,186.72,2.6798]
[1734862775843,56.78340431,186.81,186.71,2.76]
[1734862776047,24.19644442,186.86,186.72,2.76]
[1734862776343,24.19644442,186.86,186.73,3.4019]
[1734862776547,4.2985,186.86,186.81,2.6784]
[1734862778646,2.6782,186.84,186.77,2.76]
[1734862779753,1.6207,186.86,186.77,2.76]
[1734862779938,5.9219,186.88,186.77,2.76]
[1734862780140,2.6772,186.9,186.85,2.6778]
[1734862780339,2.6772,186.9,186.77,2.76]
[1734862780844,2.6772,186.9,186.85,2.6779]
[1734862783253,4.4608,186.92,186.87,2.6775]
[1734862783254,1.7008,186.92,186.87,2.6775]
[1734862783453,1.7008,186.92,186.82,2.76]
[1734862783846,2.6772,186.9,186.85,2.6779]
[1734862784950,1.7008,186.92,186.84,2.678]
[1734862785955,2.6774,186.89,186.84,2.678]
[1734862787758,2.6777,186.87,186.83,2.6782]
[1734862787959,1.7008,186.92,186.79,2.76]
[1734862788161,22.57574442,186.9,186.79,2.76]
[1734862788357,2.76,186.89,186.79,2.76]
[1734862788552,2.6778,186.86,186.82,2.6782]
[1734862788755,22.57574442,186.87,186.74,1.6971]
[1734862789056,22.57574442,186.87,186.75,2.76]
[1734862789262,1.7138,186.86,186.75,2.76]
[1734862789452,22.57574442,186.84,186.68,55.7]
[1734862789655,4.4213,186.83,186.72,2.6797]
[1734862790456,22.57574442,186.81,186.7,2.6799]
[1734862790758,22.57574442,186.81,186.67,7.7294]
[1734862792160,13.88850296,186.81,186.67,7.7294]
[1734862792759,13.88850296,186.75,186.57,72.37203088]
[1734862792959,6.1035,186.74,186.58,7.7048]
[1734862793161,2.6802,186.7,186.65,2.6808]
[1734862793365,6.1035,186.74,186.63,2.76]
[1734862793756,2.68,186.71,186.66,2.6806]
[1734862794458,6.1035,186.74,186.63,2.76]
[1734862794659,2.6801,186.7,186.65,2.6808]
[1734862794963,2.6801,186.7,186.63,2.76]
[1734862796469,2.6801,186.7,186.65,2.6808]
[1734862796768,2.6803,186.69,186.63,2.76]
[1734862796978,28.6826585,186.74,186.63,5.4409]
[1734862797169,2.6803,186.69,186.58,27.5239585]
[1734862797370,2.6803,186.69,186.59,2.76]
[1734862798068,28.6826585,186.74,186.61,2.6813]
[1734862798374,28.6826585,186.74,186.59,2.76]
[1734862798574,2.6808,186.66,186.6,2.6814]
[1734862798774,2.6808,186.66,186.59,2.76]
[1734862800471,2.6808,186.66,186.61,2.6813]
[1734862800677,2.76,186.69,186.58,4.9448]
[1734862800971,3.3435,186.74,186.58,4.9448]
[1734862801175,28.6826585,186.74,186.58,27.5239585]
[1734862801571,28.6826585,186.74,186.65,2.6807]
[1734862802479,2.6801,186.7,186.65,2.6807]
[1734862802876,28.6826585,186.74,186.65,2.6807]
[1734862803780,2.76,186.73,186.66,2.6805]
[1734862803981,3.3435,186.74,186.63,2.76]
[1734862804576,2.6797,186.73,186.63,2.76]
[1734862805579,3.3435,186.74,186.63,2.76]
[1734862806181,3.3435,186.74,186.65,2.6808]
[1734862806478,3.3435,186.74,186.63,2.76]
[1734862807384,2.6801,186.7,186.66,2.6805]
[1734862807976,3.3435,186.74,186.63,2.76]
[1734862808380,25.9226585,186.74,186.63,2.76]
[1734862808578,2.6803,186.69,186.64,2.6809]
[1734862809478,2.6799,186.71,186.64,2.6809]
[1734862809673,25.9226585,186.74,186.64,2.6809]
[1734862809874,25.9226585,186.74,186.65,2.6807]
[1734862810279,2.6803,186.69,186.65,2.6807]
[1734862810678,25.9226585,186.74,186.65,2.6807]
[1734862810877,25.9226585,186.74,186.63,2.76]
[1734862811881,2.68,186.71,186.67,2.6804]
[1734862812080,25.9226585,186.74,186.63,2.76]
[1734862812585,25.9226585,186.74,186.67,2.6805]
[1734862813387,3.3435,186.74,186.66,2.6806]
[1734862813581,3.3435,186.74,186.63,2.76]
[1734862814182,13.89523773,186.73,186.63,2.76]
[1734862814585,2.6805,186.68,186.63,5.4409]
[1734862814781,2.6805,186.68,186.63,2.76]
[1734862814981,2.76,186.72,186.63,2.76]
[1734862815177,2.6802,186.7,186.64,2.6809]
[1734862815385,2.76,186.72,186.63,2.76]
[1734862816176,2.6806,186.67,186.63,5.4411]
[1734862816381,13.89523773,186.7,186.58,4.3692]
[1734862816780,13.89523773,186.7,186.54,13.89523773]
[1734862817090,13.89523773,186.64,186.53,5.9467]
[1734862817386,2.76,186.63,186.53,2.76]
[1734862817583,6.07,186.63,186.53,2.76]
[1734862817783,2.6819,186.58,186.53,5.4425]
[1734862818185,2.6819,186.58,186.52,89.71230654]
[1734862818381,2.6819,186.58,186.53,2.6825]
[1734862818784,13.89523773,186.61,186.48,3.2933]
[1734862819089,13.89523773,186.61,186.49,2.76]
[1734862819484,13.89523773,186.61,186.45,15.50923773]
[1734862819684,13.89523773,186.61,186.46,2.76]
[1734862819883,1.5887,186.6,186.46,2.76]
[1734862821788,6.07,186.63,186.48,13.89523773]
[1734862822088,3.31,186.63,186.48,13.89523773]
[1734862822289,16.65523773,186.69,186.51,13.89523773]
[1734862822488,2.76,186.69,186.57,13.89523773]
[1734862822691,3.3021,186.71,186.58,6.0828]
[1734862822892,5.982,186.71,186.65,2.6806]
[1734862823193,3.3021,186.71,186.63,2.76]
[1734862823488,5.982,186.71,186.64,2.6808]
[1734862824290,5.982,186.71,186.63,2.76]
[1734862824494,5.982,186.71,186.65,2.6808]
[1734862824792,5.982,186.71,186.63,2.76]
[1734862824990,2.6796,186.74,186.63,2.76]
[1734862825592,25.91210356,186.76,186.63,2.76]
[1734862826192,28.59140356,186.76,186.63,2.76]
[1734862826393,25.91210356,186.76,186.63,2.76]
[1734862827791,2.6798,186.72,186.67,2.6803]
[1734862828696,2.6798,186.72,186.68,2.6803]
[1734862831191,2.6795,186.75,186.7,2.68]
[1734862832995,2.6796,186.73,186.66,2.6805]
[1734862833193,2.6796,186.73,186.63,2.76]
[1734862833400,2.6796,186.73,186.64,2.76]
[1734862833595,2.6798,186.72,186.64,2.76]
[1734862834800,2.6798,186.72,186.66,2.6806]
[1734862835001,2.6798,186.72,186.64,2.76]
[1734862835299,2.76,186.72,186.58,4.9403]
[1734862835501,22.58570817,186.7,186.59,2.76]
[1734862836193,2.6805,186.67,186.62,2.6811]
[1734862837400,2.6807,186.66,186.61,2.6813]
[1734862837900,2.6807,186.66,186.59,2.76]
[1734862838099,2.6807,186.66,186.62,2.6812]
[1734862839300,2.6805,186.67,186.62,2.6812]
[1734862839900,4.9935,186.71,186.59,2.76]
[1734862840398,6.0746,186.71,186.59,2.76]
[1734862840601,4.4327,186.71,186.59,2.76]
[1734862841701,2.6802,186.69,186.59,2.76]
[1734862842200,2.6802,186.69,186.65,2.6807]
[1734862843201,4.4327,186.71,186.59,2.76]
[1734862843594,1.6727,186.71,186.59,2.76]
[1734862843794,22.58570817,186.75,186.59,2.76]
[1734862843993,2.6798,186.72,186.59,2.76]
[1734862844197,2.6798,186.72,186.59,16.65605549]
[1734862845403,2.6798,186.72,186.68,2.6803]
[1734862845802,2.6796,186.73,186.69,2.6801]
[1734862846007,6.08639539,186.76,186.64,2.76]
[1734862846507,2.6796,186.74,186.69,2.6801]
[1734862847100,13.89605549,186.78,186.64,2.76]
[1734862848204,2.6794,186.75,186.71,2.6798]
[1734862848503,2.6794,186.75,186.69,2.76]
[1734862849202,2.6794,186.75,186.7,2.6799]
[1734862849404,2.6794,186.75,186.69,2.76]
[1734862849801,2.6796,186.73,186.69,2.76]
[1734862850002,13.89605549,186.77,186.69,2.76]
[1734862850301,2.6796,186.74,186.69,5.4402]
[1734862851002,13.89605549,186.77,186.69,2.76]
[1734862851304,13.89605549,186.77,186.59,13.89605549]
[1734862851602,2.6802,186.69,186.6,2.76]
[1734862852202,4.4271,186.73,186.6,2.76]
[1734862852203,2.6801,186.7,186.6,2.76]
[1734862853205,4.4271,186.73,186.61,2.76]
[1734862853506,2.6798,186.72,186.68,2.6803]
[1734862854604,2.6798,186.72,186.69,2.6802]
[1734862856409,2.68,186.71,186.61,2.76]
[1734862857409,2.68,186.71,186.67,2.6805]
[1734862857900,2.76,186.76,186.61,2.76]
[1734862857901,2.6798,186.72,186.61,2.76]
[1734862858105,2.76,186.76,186.61,2.76]
[1734862858402,2.6796,186.74,186.61,2.76]
[1734862858705,2.6796,186.74,186.69,2.6801]
[1734862859007,2.6796,186.74,186.66,2.76]
[1734862859206,13.89605549,186.78,186.67,2.76]
[1734862859401,2.6794,186.75,186.67,2.76]
[1734862859798,2.6794,186.75,186.71,2.6798]
[1734862859999,2.76,186.77,186.67,2.76]
[1734862861206,13.89605549,186.75,186.62,58.48352792]
[1734862861798,2.6802,186.69,186.62,58.48352792]
[1734862862109,2.76,186.72,186.61,61.24352792]
[1734862862609,2.6802,186.69,186.61,61.24352792]
[1734862863000,2.6797,186.73,186.69,2.6801]
[1734862863207,13.89605549,186.75,186.61,2.76]
[1734862864211,13.89605549,186.72,186.58,4.9403]
[1734862864514,13.89605549,186.72,186.59,2.76]
[1734862864515,5.9342,186.71,186.59,2.76]
[1734862864809,2.6808,186.65,186.61,2.6812]
[1734862865607,2.6809,186.64,186.61,2.6812]
[1734862865906,13.89605549,186.7,186.57,2.76]
[1734862866300,13.89605549,186.67,186.54,58.48352792]
[1734862866509,13.89605549,186.64,186.54,58.48352792]
[1734862866807,1.7189,186.63,186.53,2.76]
[1734862867204,16.65605549,186.7,186.54,13.89605549]
[1734862868108,2.6805,186.67,186.62,2.6812]
[1734862868304,2.6805,186.67,186.59,2.76]
[1734862868708,2.6805,186.67,186.63,2.681]
[1734862868910,2.6803,186.69,186.59,2.76]
[1734862869112,2.76,186.7,186.59,2.76]
[1734862869311,2.76,186.7,186.65,2.6807]
[1734862869508,1.5927,186.71,186.59,2.76]
[1734862869812,1.5927,186.71,186.65,2.6807]
[1734862870016,1.5927,186.71,186.6,5.0297]
[1734862870604,2.6801,186.7,186.6,5.0297]
[1734862871213,2.6801,186.7,186.65,2.6807]
[1734862871716,1.5927,186.71,186.6,5.0297]
[1734862871917,1.5927,186.71,186.63,2.681]
[1734862872615,1.5927,186.71,186.6,5.0297]
[1734862873312,2.6801,186.7,186.6,5.0297]
[1734862873617,1.5927,186.71,186.6,5.0297]
[1734862873819,1.7189,186.73,186.6,18.92575549]
[1734862874615,1.7189,186.73,186.68,2.6803]
[1734862875313,4.3985,186.73,186.65,2.76]
[1734862875517,4.3985,186.73,186.69,2.6802]
[1734862876415,5.90736326,186.76,186.65,2.76]
[1734862876416,3.14736326,186.76,186.65,2.76]
[1734862877007,2.6793,186.75,186.71,2.6799]
[1734862878318,5.82666326,186.76,186.72,2.6797]
[1734862879116,2.6794,186.75,186.71,2.6799]
[1734862879722,2.6796,186.74,186.69,2.6801]
[1734862880222,2.6796,186.74,186.65,2.76]
[1734862880423,2.6796,186.74,186.7,2.6799]
[1734862880618,3.14736326,186.76,186.65,2.76]
[1734862880820,5.82666326,186.76,186.65,2.76]
[1734862881021,3.14736326,186.76,186.65,2.76]
[1734862881729,5.82656326,186.76,186.71,2.6798]
[1734862882021,2.6792,186.76,186.71,2.6798]
[1734862882621,2.6794,186.75,186.71,2.6798]
[1734862883019,13.89605549,186.77,186.69,2.6801]
[1734862883926,13.89605549,186.77,186.7,2.68]
[1734862884113,2.6794,186.75,186.7,2.68]
[1734862884525,13.89605549,186.77,186.7,2.68]
[1734862884919,2.6796,186.74,186.7,2.68]
[1734862885224,13.89605549,186.77,186.66,2.74]
[1734862885622,2.6799,186.72,186.67,2.6804]
[1734862886220,2.74,186.75,186.67,2.6804]
[1734862886928,2.68,186.71,186.67,2.6804]
[1734862888218,13.89605549,186.79,186.64,2.74]
[1734862888423,16.63605549,186.79,186.64,2.74]
[1734862889231,2.6794,186.75,186.7,2.6799]
[1734862889527,2.6794,186.75,186.64,2.74]
[1734862890030,2.6794,186.75,186.7,2.6799]
[1734862890431,2.6794,186.75,186.64,2.74]
[1734862891528,2.6792,186.76,186.64,2.74]
[1734862892138,16.63605549,186.79,186.64,2.74]
[1734862892340,2.6794,186.75,186.71,2.6798]
[1734862892632,16.63605549,186.79,186.69,2.74]
[1734862893642,2.6792,186.76,186.72,2.6798]
[1734862893835,2.6792,186.76,186.69,2.74]
[1734862894538,2.6792,186.76,186.71,2.6799]
[1734862895242,13.89605549,186.79,186.71,2.6799]
[1734862895843,13.89605549,186.79,186.7,2.68]
[1734862896040,8.68285185,186.76,186.7,2.68]
[1734862896844,2.6796,186.74,186.7,2.68]
[1734862897046,2.6796,186.74,186.71,2.6799]
[1734862897240,8.68285185,186.76,186.68,2.74]
[1734862897745,2.6794,186.75,186.7,2.68]
[1734862897940,2.6794,186.75,186.68,2.74]
[1734862899146,2.6794,186.75,186.71,2.6798]
[1734862900949,8.68285185,186.77,186.69,2.6801]
[1734862901151,8.68285185,186.77,186.68,2.74]
[1734862902043,2.6794,186.75,186.68,2.74]
[1734862902950,2.6792,186.76,186.72,2.6797]
[1734862903348,29.84214189,186.86,186.75,8.68285185]
[1734862903548,29.84214189,186.86,186.76,2.74]
[1734862904150,2.6782,186.84,186.79,2.6788]
[1734862904348,13.8760479,186.86,186.75,2.74]
[1734862904548,13.8760479,186.86,186.76,2.6791]
[1734862904952,13.8760479,186.86,186.75,2.74]
[1734862905542,2.6785,186.82,186.77,2.679]
[1734862906051,2.6785,186.81,186.77,2.679]
[1734862906947,2.6785,186.81,186.78,5.04899588]
[1734862907148,2.6785,186.81,186.79,5.04899588]
[1734862907552,2.6785,186.81,186.77,2.679]
[1734862907849,13.8760479,186.86,186.78,5.04847355]
[1734862908054,13.8760479,186.86,186.79,5.04847355]
[1734862908258,5.9744,186.88,186.79,5.04847355]
[1734862908452,5.9744,186.88,186.8,5.04847355]
[1734862908653,2.678,186.85,186.81,2.6785]
[1734862909255,5.9744,186.88,186.75,2.74]
[1734862909458,5.9744,186.88,186.78,2.6788]
[1734862909858,5.9744,186.88,186.79,5.0446419]
[1734862910159,5.9744,186.88,186.78,2.6788]